[Event "ONJK FGH 2"]
[Site "Enschede, Netherlands"]
[Date "2022.08.12"]
[Round "4.1"]
[White "Oelmeijer, Sjoerd"]
[Black "Georgopoulos-Karbouniaris"]
[Result "1/2-1/2"]
[TimeControl "25min + 10sec/move"]
[WhiteElo "743"]
[BlackElo "787"]

1. e4 {[%clk 00:25:18]} e5 {[%clk 00:25:19]} 2. Nf3 {[%clk 00:25:27]} Nc6
{[%clk 00:25:28]} {[%emt 00:00:02]} 3. Bc4 {[%clk 00:25:35]} {[%emt 00:00:01]}
Bc5 {[%clk 00:25:33]} {[%emt 00:00:05]} 4. O-O {[%clk 00:25:43]} {[%emt
00:00:03]} d6 {[%clk 00:25:39]} {[%emt 00:00:04]} 5. d3 {[%clk 00:25:47]}
{[%emt 00:00:05]} h6 {[%clk 00:25:47]} {[%emt 00:00:01]} 6. Nc3 {[%clk
00:25:55]} {[%emt 00:00:03]} Bg4 {[%clk 00:25:55]} {[%emt 00:00:02]} 7. h3
{[%clk 00:26:02]} {[%emt 00:00:04]} Bh5 {[%clk 00:26:04]} 8. Nxe5 {[%clk
00:25:38]} {[%emt 00:00:33]} Bxd1 {[%clk 00:26:08]} {[%emt 00:00:05]} 9. Bxf7+
{[%clk 00:25:46]} {[%emt 00:00:03]} Kf8 {[%clk 00:26:09]} {[%emt 00:00:09]} 10.
Ng6+ {[%clk 00:25:11]} {[%emt 00:00:45]} Kxf7 {[%clk 00:26:03]} {[%emt
00:00:16]} 11. Nxh8+ {[%clk 00:25:20]} {[%emt 00:00:01]} Kf8 {[%clk 00:25:56]}
{[%emt 00:00:17]} 12. Ng6+ {[%clk 00:25:25]} {[%emt 00:00:04]} Kf7 {[%clk
00:26:05]} {[%emt 00:00:02]} 13. Nh8+ {[%clk 00:25:33]} {[%emt 00:00:02]} Kf8
{[%clk 00:26:14]} 14. Ng6+ {[%clk 00:25:42]} {[%emt 00:00:01]} Kf7 {[%clk
00:26:22]} {[%emt 00:00:02]} 15. Nh8+ {[%clk 00:25:50]} {[%emt 00:00:01]} Kf8
{[%clk 00:26:31]} {[%emt 00:00:02]} 16. Ng6+ {[%clk 00:25:47]} {[%emt
00:00:03]} 1/2-1/2

[Event "ONJK FGH 2"]
[Site "Enschede, Netherlands"]
[Date "2022.08.12"]
[Round "4.2"]
[White "Zantingh, Kyo"]
[Black "Mousa, Besher"]
[Result "1-0"]
[TimeControl "25min + 10sec/move"]
[WhiteElo "739"]
[BlackElo "782"]

1. e4 {[%clk 00:25:17]} {[%emt 00:00:03]} e5 {[%clk 00:25:20]} {[%emt
00:00:01]} 2. Nf3 {[%clk 00:25:26]} Nc6 {[%clk 00:25:29]} {[%emt 00:00:01]} 3.
Bc4 {[%clk 00:25:35]} Bc5 {[%clk 00:25:37]} {[%emt 00:00:02]} 4. c3 {[%clk
00:25:44]} {[%emt 00:00:01]} a6 {[%clk 00:25:45]} {[%emt 00:00:03]} 5. d4
{[%clk 00:25:52]} {[%emt 00:00:01]} exd4 {[%clk 00:25:49]} {[%emt 00:00:06]} 6.
cxd4 {[%clk 00:26:00]} Ba7 {[%clk 00:25:53]} {[%emt 00:00:06]} 7. Ng5 {[%clk
00:26:07]} {[%emt 00:00:04]} Nh6 {[%clk 00:25:58]} {[%emt 00:00:04]} 8. d5
{[%clk 00:26:15]} {[%emt 00:00:02]} Nb8 {[%clk 00:26:00]} {[%emt 00:00:08]} 9.
Nf3 {[%clk 00:26:21]} {[%emt 00:00:05]} O-O {[%clk 00:26:07]} {[%emt 00:00:03]}
10. Bxh6 {[%clk 00:26:28]} {[%emt 00:00:02]} gxh6 {[%clk 00:26:13]} {[%emt
00:00:04]} 11. O-O {[%clk 00:26:34]} {[%emt 00:00:05]} Qf6 {[%clk 00:26:14]}
{[%emt 00:00:08]} 12. Nc3 {[%clk 00:26:34]} {[%emt 00:00:11]} b5 {[%clk
00:26:15]} {[%emt 00:00:08]} 13. Bb3 {[%clk 00:26:37]} {[%emt 00:00:07]} b4
{[%clk 00:26:23]} {[%emt 00:00:02]} 14. Na4 {[%clk 00:26:33]} {[%emt 00:00:14]}
d6 {[%clk 00:26:21]} {[%emt 00:00:13]} 15. Qd3 {[%clk 00:26:33]} {[%emt
00:00:10]} Qg6 {[%clk 00:26:18]} {[%emt 00:00:11]} 16. Nh4 {[%clk 00:26:37]}
{[%emt 00:00:07]} Qg5 {[%clk 00:26:11]} {[%emt 00:00:16]} 17. Nf3 {[%clk
00:26:29]} {[%emt 00:00:19]} Qg6 {[%clk 00:26:13]} {[%emt 00:00:06]} 18. Bc2
{[%clk 00:26:23]} {[%emt 00:00:18]} Bh3 {[%clk 00:26:17]} {[%emt 00:00:06]} 19.
Nh4 {[%clk 00:26:29]} {[%emt 00:00:04]} Qg5 {[%clk 00:26:17]} {[%emt 00:00:07]}
20. Qxh3 {[%clk 00:26:36]} {[%emt 00:00:07]} Qd2 {[%clk 00:25:56]} {[%emt
00:00:29]} 21. Qg4+ {[%clk 00:26:38]} {[%emt 00:00:09]} Kh8 {[%clk 00:25:51]}
{[%emt 00:00:14]} 22. Bb1 {[%clk 00:26:15]} {[%emt 00:00:35]} Bxf2+ {[%clk
00:25:30]} {[%emt 00:00:29]} 23. Rxf2 {[%clk 00:26:17]} {[%emt 00:00:09]} Qe1+
{[%clk 00:25:32]} {[%emt 00:00:06]} 24. Rf1 {[%clk 00:26:25]} {[%emt 00:00:03]}
Qe3+ {[%clk 00:25:36]} {[%emt 00:00:06]} 25. Kh1 {[%clk 00:26:28]} {[%emt
00:00:09]} Rg8 {[%clk 00:25:31]} {[%emt 00:00:09]} 26. Qf5 {[%clk 00:26:36]}
{[%emt 00:00:07]} Qe2 {[%clk 00:25:13]} {[%emt 00:00:18]} 27. e5 {[%clk
00:26:41]} {[%emt 00:00:15]} dxe5 {[%clk 00:24:46]} {[%emt 00:00:36]} 28. Qxh7#
{[%clk 00:26:30]} {[%emt 00:00:11]} 1-0

[Event "ONJK FGH 2"]
[Site "Enschede, Netherlands"]
[Date "2022.08.12"]
[Round "4.3"]
[White "De Labaca, Julia"]
[Black "Westerhof, Siem"]
[Result "1-0"]
[TimeControl "25min + 10sec/move"]
[WhiteElo "1114"]
[BlackElo "739"]

1. e4 {[%clk 00:25:18]} {[%emt 00:00:01]} e5 {[%clk 00:25:15]} {[%emt
00:00:05]} 2. Nf3 {[%clk 00:25:21]} {[%emt 00:00:07]} Nc6 {[%clk 00:25:22]}
{[%emt 00:00:03]} 3. Nc3 {[%clk 00:25:20]} {[%emt 00:00:11]} Nf6 {[%clk
00:25:16]} {[%emt 00:00:16]} 4. d4 {[%clk 00:25:28]} {[%emt 00:00:02]} exd4
{[%clk 00:25:20]} {[%emt 00:00:06]} 5. Nxd4 {[%clk 00:25:36]} {[%emt 00:00:02]}
Nxd4 {[%clk 00:25:11]} {[%emt 00:00:19]} 6. Qxd4 {[%clk 00:25:43]} {[%emt
00:00:03]} d6 {[%clk 00:25:00]} {[%emt 00:00:21]} 7. Bg5 {[%clk 00:25:50]}
{[%emt 00:00:03]} Be7 {[%clk 00:25:08]} {[%emt 00:00:03]} 8. Bxf6 {[%clk
00:25:21]} {[%emt 00:00:37]} Bxf6 {[%clk 00:25:10]} {[%emt 00:00:09]} 9. Qe3
{[%clk 00:25:02]} {[%emt 00:00:29]} O-O {[%clk 00:25:15]} {[%emt 00:00:04]} 10.
O-O-O {[%clk 00:25:00]} {[%emt 00:00:11]} Re8 {[%clk 00:25:22]} {[%emt
00:00:05]} 11. Bc4 {[%clk 00:25:00]} {[%emt 00:00:09]} c6 {[%clk 00:25:10]}
{[%emt 00:00:23]} 12. Qe2 {[%clk 00:24:17]} {[%emt 00:00:53]} Bxc3 {[%clk
00:25:07]} {[%emt 00:00:13]} 13. bxc3 {[%clk 00:24:18]} {[%emt 00:00:08]} Bf5
{[%clk 00:25:09]} {[%emt 00:00:08]} 14. f3 {[%clk 00:24:04]} {[%emt 00:00:25]}
d5 {[%clk 00:25:16]} {[%emt 00:00:03]} 15. Bb3 {[%clk 00:23:59]} {[%emt
00:00:15]} dxe4 {[%clk 00:25:15]} {[%emt 00:00:12]} 16. Rxd8 {[%clk 00:24:06]}
{[%emt 00:00:03]} exf3 {[%clk 00:25:17]} {[%emt 00:00:08]} 17. Rxe8+ {[%clk
00:24:11]} {[%emt 00:00:05]} Rxe8 {[%clk 00:25:23]} {[%emt 00:00:03]} 18. Qxe8#
{[%clk 00:24:09]} {[%emt 00:00:02]} 1-0

[Event "ONJK FGH 2"]
[Site "Enschede, Netherlands"]
[Date "2022.08.12"]
[Round "5.1"]
[White "Georgopoulos-Karbouniaris"]
[Black "Zantingh, Kyo"]
[Result "0-1"]
[TimeControl "25min + 10sec/move"]
[WhiteElo "787"]
[BlackElo "739"]

1. e4 {[%clk 00:25:18]} {[%emt 00:00:01]} f5 {[%clk 00:25:10]} {[%emt
00:00:11]} 2. c3 {[%clk 00:25:17]} {[%emt 00:00:11]} fxe4 {[%clk 00:25:18]}
{[%emt 00:00:02]} 3. f3 {[%clk 00:25:26]} exf3 {[%clk 00:25:26]} {[%emt
00:00:02]} 4. Nxf3 {[%clk 00:25:34]} Nf6 {[%clk 00:25:35]} {[%emt 00:00:02]} 5.
d4 {[%clk 00:25:43]} {[%emt 00:00:01]} e6 {[%clk 00:25:42]} {[%emt 00:00:04]} 6.
Bg5 {[%clk 00:25:47]} {[%emt 00:00:05]} Be7 {[%clk 00:25:51]} {[%emt 00:00:01]}
7. Nbd2 {[%clk 00:25:54]} {[%emt 00:00:03]} O-O {[%clk 00:25:59]} {[%emt
00:00:01]} 8. Be2 {[%clk 00:25:54]} {[%emt 00:00:11]} Nh5 {[%clk 00:26:05]}
{[%emt 00:00:04]} 9. Bxe7 {[%clk 00:26:00]} {[%emt 00:00:04]} Qxe7 {[%clk
00:26:13]} {[%emt 00:00:02]} 10. Ne5 {[%clk 00:25:58]} {[%emt 00:00:11]} Qf6
{[%clk 00:26:12]} {[%emt 00:00:12]} 11. Ng4 {[%clk 00:25:49]} {[%emt 00:00:19]}
Qf7 {[%clk 00:26:03]} {[%emt 00:00:20]} 12. Bf3 {[%clk 00:25:45]} {[%emt
00:00:13]} Nf6 {[%clk 00:26:01]} {[%emt 00:00:12]} 13. Ne5 {[%clk 00:25:49]}
{[%emt 00:00:07]} Qe8 {[%clk 00:25:58]} {[%emt 00:00:12]} 14. O-O {[%clk
00:25:50]} {[%emt 00:00:10]} d6 {[%clk 00:26:06]} {[%emt 00:00:01]} 15. Ng4
{[%clk 00:25:35]} {[%emt 00:00:25]} Nxg4 {[%clk 00:26:13]} {[%emt 00:00:04]} 16.
Bxg4 {[%clk 00:25:43]} {[%emt 00:00:02]} Rxf1+ {[%clk 00:26:21]} {[%emt
00:00:02]} 17. Qxf1 {[%clk 00:25:50]} {[%emt 00:00:03]} Nc6 {[%clk 00:26:23]}
{[%emt 00:00:07]} 18. Nf3 {[%clk 00:25:51]} {[%emt 00:00:09]} Bd7 {[%clk
00:26:31]} {[%emt 00:00:03]} 19. b4 {[%clk 00:25:59]} {[%emt 00:00:02]} a5
{[%clk 00:26:36]} {[%emt 00:00:05]} 20. b5 {[%clk 00:26:02]} {[%emt 00:00:06]}
Na7 {[%clk 00:26:39]} {[%emt 00:00:08]} 21. a4 {[%clk 00:26:08]} {[%emt
00:00:03]} c6 {[%clk 00:26:40]} {[%emt 00:00:09]} 22. c4 {[%clk 00:26:01]}
{[%emt 00:00:17]} d5 {[%clk 00:26:46]} {[%emt 00:00:04]} 23. b6 {[%clk
00:26:05]} {[%emt 00:00:06]} Nc8 {[%clk 00:26:45]} {[%emt 00:00:11]} 24. c5
{[%clk 00:26:13]} {[%emt 00:00:02]} Ne7 {[%clk 00:26:18]} {[%emt 00:00:36]} 25.
Ne5 {[%clk 00:26:08]} {[%emt 00:00:15]} Ng6 {[%clk 00:26:08]} {[%emt 00:00:21]}
26. Nxd7 {[%clk 00:26:07]} {[%emt 00:00:11]} Qxd7 {[%clk 00:26:14]} {[%emt
00:00:04]} 27. Bh5 {[%clk 00:26:09]} {[%emt 00:00:08]} Rf8 {[%clk 00:26:22]}
{[%emt 00:00:02]} 28. Qb1 {[%clk 00:25:55]} {[%emt 00:00:21]} Nf4 {[%clk
00:26:26]} {[%emt 00:00:08]} 29. Bf3 {[%clk 00:25:56]} {[%emt 00:00:09]} Qe7
{[%clk 00:26:09]} {[%emt 00:00:29]} 30. Qe1 {[%clk 00:25:23]} {[%emt 00:00:42]}
Nd3 {[%clk 00:26:10]} {[%emt 00:00:09]} 31. Qd2 {[%clk 00:25:19]} {[%emt
00:00:12]} Nf4 {[%clk 00:26:15]} {[%emt 00:00:07]} 32. Qe1 {[%clk 00:25:26]}
{[%emt 00:00:02]} Nd3 {[%clk 00:26:13]} {[%emt 00:00:12]} 33. Qd2 {[%clk
00:25:33]} {[%emt 00:00:04]} Nf4 {[%clk 00:26:22]} {[%emt 00:00:02]} 34. Qe1
{[%clk 00:25:41]} Qg5 {[%clk 00:26:13]} {[%emt 00:00:18]} 35. h4 {[%clk
00:24:23]} {[%emt 00:01:28]} Qg6 {[%clk 00:26:12]} {[%emt 00:00:11]} 36. h5
{[%clk 00:24:12]} {[%emt 00:00:22]} Qg5 {[%clk 00:26:16]} {[%emt 00:00:06]} 37.
Qe5 {[%clk 00:23:52]} {[%emt 00:00:28]} Qg3 {[%clk 00:26:16]} {[%emt 00:00:11]}
38. Qe1 {[%clk 00:22:59]} {[%emt 00:01:02]} Nh3+ {[%clk 00:26:07]} {[%emt
00:00:21]} 39. Kf1 {[%clk 00:22:28]} {[%emt 00:00:41]} Rxf3+ {[%clk 00:26:06]}
{[%emt 00:00:11]} 40. gxf3 {[%clk 00:22:34]} {[%emt 00:00:04]} Qxf3+ {[%clk
00:26:15]} {[%emt 00:00:02]} 41. Qf2 {[%clk 00:22:18]} {[%emt 00:00:14]} Qxf2#
{[%clk 00:26:15]} 0-1

[Event "ONJK FGH 2"]
[Site "Enschede, Netherlands"]
[Date "2022.08.12"]
[Round "5.2"]
[White "De Wit, Jim"]
[Black "Oelmeijer, Sjoerd"]
[Result "1/2-1/2"]
[TimeControl "25min + 10sec/move"]
[WhiteElo "889"]
[BlackElo "743"]

1. e4 {[%clk 00:25:16]} {[%emt 00:00:04]} e5 {[%clk 00:25:20]} 2. Nf3 {[%clk
00:25:23]} {[%emt 00:00:03]} Nc6 {[%clk 00:25:29]} {[%emt 00:00:01]} 3. Bb5
{[%clk 00:25:27]} {[%emt 00:00:04]} a6 {[%clk 00:25:38]} {[%emt 00:00:02]} 4.
Bxc6 {[%clk 00:25:33]} {[%emt 00:00:03]} dxc6 {[%clk 00:25:47]} {[%emt
00:00:02]} 5. O-O {[%clk 00:25:37]} {[%emt 00:00:06]} Bd6 {[%clk 00:25:52]}
{[%emt 00:00:05]} 6. d4 {[%clk 00:25:42]} {[%emt 00:00:05]} exd4 {[%clk
00:25:59]} {[%emt 00:00:03]} 7. Nxd4 {[%clk 00:25:49]} {[%emt 00:00:03]} Ne7
{[%clk 00:25:58]} {[%emt 00:00:11]} 8. Nc3 {[%clk 00:25:33]} {[%emt 00:00:08]}
Bc5 {[%clk 00:26:00]} {[%emt 00:00:26]} 9. Be3 {[%clk 00:25:35]} {[%emt
00:00:08]} Bxd4 {[%clk 00:26:01]} {[%emt 00:00:08]} 10. Bxd4 {[%clk 00:25:42]}
{[%emt 00:00:04]} O-O {[%clk 00:26:03]} {[%emt 00:00:08]} 11. e5 {[%clk
00:25:42]} {[%emt 00:00:09]} Nf5 {[%clk 00:25:52]} {[%emt 00:00:23]} 12. Bc5
{[%clk 00:25:02]} {[%emt 00:00:49]} Re8 {[%clk 00:25:30]} {[%emt 00:00:32]} 13.
Re1 {[%clk 00:24:28]} {[%emt 00:00:42]} b6 {[%clk 00:25:08]} {[%emt 00:00:35]}
14. Qxd8 {[%clk 00:24:04]} {[%emt 00:00:33]} Rxd8 {[%clk 00:25:13]} {[%emt
00:00:05]} 15. Be3 {[%clk 00:23:53]} {[%emt 00:00:21]} Nxe3 {[%clk 00:24:47]}
{[%emt 00:00:36]} 16. Rxe3 {[%clk 00:23:53]} {[%emt 00:00:09]} Be6 {[%clk
00:24:49]} {[%emt 00:00:10]} 17. Ne4 {[%clk 00:23:26]} {[%emt 00:00:36]} Rd7
{[%clk 00:24:34]} {[%emt 00:00:26]} 18. Rg3 {[%clk 00:22:48]} {[%emt 00:00:46]}
Kf8 {[%clk 00:24:17]} {[%emt 00:00:29]} 19. Ng5 {[%clk 00:22:22]} {[%emt
00:00:26]} h6 {[%clk 00:24:16]} {[%emt 00:00:21]} 20. Nxe6+ {[%clk 00:22:19]}
{[%emt 00:00:12]} fxe6 {[%clk 00:24:24]} {[%emt 00:00:03]} 21. Rf3+ {[%clk
00:22:27]} {[%emt 00:00:02]} Ke7 {[%clk 00:24:26]} {[%emt 00:00:08]} 22. Rc1
{[%clk 00:22:28]} {[%emt 00:00:05]} Rad8 {[%clk 00:24:32]} {[%emt 00:00:08]} 23.
Re3 {[%clk 00:22:08]} {[%emt 00:00:29]} Rd1+ {[%clk 00:24:39]} {[%emt
00:00:03]} 24. Re1 {[%clk 00:22:15]} {[%emt 00:00:02]} R1d2 {[%clk 00:24:39]}
{[%emt 00:00:12]} 25. h3 {[%clk 00:22:13]} {[%emt 00:00:09]} R8d5 {[%clk
00:24:29]} {[%emt 00:00:22]} 26. Kf1 {[%clk 00:22:04]} {[%emt 00:00:18]} Rc5
{[%clk 00:24:33]} {[%emt 00:00:07]} 27. Re2 {[%clk 00:19:38]} {[%emt 00:02:35]}
Rxe2 {[%clk 00:24:38]} {[%emt 00:00:07]} 28. Kxe2 {[%clk 00:19:45]} {[%emt
00:00:02]} Rxe5+ {[%clk 00:24:46]} {[%emt 00:00:02]} 29. Kf1 {[%clk 00:19:47]}
{[%emt 00:00:08]} Ra5 {[%clk 00:24:29]} {[%emt 00:00:27]} 30. a3 {[%clk
00:19:40]} {[%emt 00:00:17]} Rb5 {[%clk 00:24:35]} {[%emt 00:00:04]} 31. b3
{[%clk 00:19:42]} {[%emt 00:00:08]} Ra5 {[%clk 00:24:10]} {[%emt 00:00:36]} 32.
Ra1 {[%clk 00:19:34]} {[%emt 00:00:16]} Rd5 {[%clk 00:24:01]} {[%emt 00:00:20]}
33. g4 {[%clk 00:19:26]} {[%emt 00:00:17]} Rd2 {[%clk 00:24:05]} {[%emt
00:00:07]} 34. Rc1 {[%clk 00:19:30]} {[%emt 00:00:04]} Rd5 {[%clk 00:23:27]}
{[%emt 00:00:50]} 35. Rb1 {[%clk 00:18:54]} {[%emt 00:00:44]} Rc5 {[%clk
00:23:30]} {[%emt 00:00:09]} 36. Rb2 {[%clk 00:18:54]} {[%emt 00:00:09]} Rc3
{[%clk 00:23:35]} {[%emt 00:00:07]} 37. Kg2 {[%clk 00:18:39]} {[%emt 00:00:22]}
Rc5 {[%clk 00:23:22]} {[%emt 00:00:26]} 38. f4 {[%clk 00:18:20]} {[%emt
00:00:21]} e5 {[%clk 00:23:21]} {[%emt 00:00:18]} 39. c4 {[%clk 00:18:04]}
{[%emt 00:00:25]} exf4 {[%clk 00:23:27]} {[%emt 00:00:05]} 40. Re2+ {[%clk
00:18:08]} {[%emt 00:00:04]} Kf6 {[%clk 00:23:24]} {[%emt 00:00:15]} 41. Kf3
{[%clk 00:17:54]} {[%emt 00:00:21]} g5 {[%clk 00:23:19]} {[%emt 00:00:17]} 42.
Re1 {[%clk 00:16:30]} {[%emt 00:01:32]} Re5 {[%clk 00:23:25]} {[%emt 00:00:07]}
43. Rb1 {[%clk 00:15:40]} {[%emt 00:00:57]} Re3+ {[%clk 00:23:32]} {[%emt
00:00:06]} 44. Kg2 {[%clk 00:15:46]} {[%emt 00:00:03]} Rg3+ {[%clk 00:23:35]}
{[%emt 00:00:08]} 45. Kh2 {[%clk 00:15:48]} {[%emt 00:00:06]} Re3 {[%clk
00:23:31]} {[%emt 00:00:16]} 46. Rb2 {[%clk 00:15:31]} {[%emt 00:00:22]} Re1
{[%clk 00:23:27]} {[%emt 00:00:19]} 47. Ra2 {[%clk 00:15:32]} {[%emt 00:00:09]}
Rb1 {[%clk 00:23:33]} {[%emt 00:00:04]} 48. b4 {[%clk 00:15:40]} {[%emt
00:00:02]} Rc1 {[%clk 00:23:39]} {[%emt 00:00:05]} 49. c5 {[%clk 00:15:22]}
{[%emt 00:00:28]} bxc5 {[%clk 00:23:46]} {[%emt 00:00:02]} 50. bxc5 {[%clk
00:15:28]} {[%emt 00:00:04]} Rxc5 {[%clk 00:23:54]} {[%emt 00:00:02]} 51. Kg2
{[%clk 00:15:32]} {[%emt 00:00:05]} Rc3 {[%clk 00:23:35]} {[%emt 00:00:30]} 52.
a4 {[%clk 00:15:36]} {[%emt 00:00:05]} c5 {[%clk 00:23:34]} {[%emt 00:00:12]}
53. a5 {[%clk 00:15:14]} {[%emt 00:00:31]} c4 {[%clk 00:23:40]} {[%emt
00:00:05]} 54. Ra1 {[%clk 00:15:06]} {[%emt 00:00:18]} Rc2+ {[%clk 00:23:41]}
{[%emt 00:00:10]} 55. Kh1 {[%clk 00:14:59]} {[%emt 00:00:15]} c3 {[%clk
00:23:46]} {[%emt 00:00:07]} 56. Kg1 {[%clk 00:15:04]} {[%emt 00:00:03]} Rd2
{[%clk 00:23:50]} {[%emt 00:00:07]} 57. Kf1 {[%clk 00:14:54]} {[%emt 00:00:19]}
c2 {[%clk 00:23:59]} {[%emt 00:00:02]} 58. Ke1 {[%clk 00:14:54]} {[%emt
00:00:09]} Rh2 {[%clk 00:24:03]} {[%emt 00:00:06]} 59. Rc1 {[%clk 00:14:57]}
{[%emt 00:00:07]} Rh1+ {[%clk 00:23:51]} {[%emt 00:00:23]} 60. Kd2 {[%clk
00:15:00]} {[%emt 00:00:06]} Rh2+ {[%clk 00:23:36]} {[%emt 00:00:26]} 61. Ke1
{[%emt 00:00:03]} Rh1+ {[%emt 00:00:07]} 62. Kd2 {[%clk 00:14:57]} {[%emt
00:00:02]} Rxc1 {[%clk 00:23:45]} {[%emt 00:00:02]} 63. Kxc1 {[%clk 00:15:05]}
Ke5 {[%emt 00:00:08]} 64. Kxc2 {[%clk 00:15:13]} {[%emt 00:00:02]} Ke4 {[%clk
00:23:59]} {[%emt 00:00:01]} 65. Kd2 {[%clk 00:15:21]} {[%emt 00:00:01]} Kf3
{[%clk 00:24:06]} {[%emt 00:00:04]} 66. Ke1 {[%clk 00:15:27]} {[%emt 00:00:03]}
Kg2 {[%clk 00:24:14]} {[%emt 00:00:02]} 67. Ke2 {[%clk 00:15:30]} {[%emt
00:00:05]} f3+ {[%clk 00:24:23]} {[%emt 00:00:03]} 68. Ke3 {[%clk 00:15:39]} f2
{[%clk 00:24:32]} {[%emt 00:00:01]} 69. Kd2 {[%clk 00:15:47]} {[%emt 00:00:03]}
f1=Q {[%emt 00:00:05]} 70. Kc3 {[%clk 00:15:54]} {[%emt 00:00:03]} Kxh3 {[%clk
00:24:41]} {[%emt 00:00:06]} 71. Kd4 {[%clk 00:16:09]} {[%emt 00:00:06]} Qf4+
{[%clk 00:24:52]} {[%emt 00:00:08]} 72. Kc5 {[%clk 00:16:16]} {[%emt 00:00:02]}
Qe4 {[%clk 00:24:58]} {[%emt 00:00:04]} 1/2-1/2